[Event "Titled Tuesday Blitz January 25 2022"]
[White "Visakh N R"]
[Black "Ljukin, Sergei"]
[WhiteFideId "25012223"]
[BlackFideId "14102200"]
[WhiteElo "2454"]
[BlackElo "2312"]
[Result "1-0"]
[Round "03"]
[TimeControl "180+1"]
[Date "2022.01.26"]
[WhiteClock "0:00:31"]
[BlackClock "0:00:25"]

1. e4 {[%clk 0:03:00]}  e6 {[%clk 0:02:55]} 2. d4 {[%clk 0:02:58]}  d5 {[%clk 0:02:55]} 3. Nd2 {[%clk 0:02:58]}  Nf6 {[%clk 0:02:54]} 4. e5 {[%clk 0:02:53]}  Nfd7 {[%clk 0:02:54]} 5. Ngf3 {[%clk 0:02:52]}  c5 {[%clk 0:02:54]} 6. c3 {[%clk 0:02:52]}  Nc6 {[%clk 0:02:54]} 7. Bd3 {[%clk 0:02:49]}  Qb6 {[%clk 0:02:53]} 8. O-O {[%clk 0:02:47]}  Be7 {[%clk 0:02:53]} 9. dxc5 {[%clk 0:02:45]}  Nxc5 {[%clk 0:02:49]} 10. Bc2 {[%clk 0:02:44]}  f6 {[%clk 0:02:49]} 11. exf6 {[%clk 0:02:32]}  Bxf6 {[%clk 0:02:48]} 12. Nb3 {[%clk 0:02:32]}  Nxb3 {[%clk 0:02:47]} 13. Bxb3 {[%clk 0:02:25]}  O-O {[%clk 0:02:45]} 14. Be3 {[%clk 0:02:25]}  Qc7 {[%clk 0:02:41]} 15. c4 {[%clk 0:02:24]}  d4 {[%clk 0:02:30]} 16. Bg5 {[%clk 0:02:18]}  e5 {[%clk 0:02:20]} 17. c5+ {[%clk 0:02:12]}  Kh8 {[%clk 0:02:19]} 18. Bxf6 {[%clk 0:02:12]}  Rxf6 {[%clk 0:02:18]} 19. Ng5 {[%clk 0:02:10]}  Bf5 {[%clk 0:02:07]} 20. Bd5 {[%clk 0:01:51]}  Nb4 {[%clk 0:01:40]} 21. Be4 {[%clk 0:01:47]}  Qxc5 {[%clk 0:01:36]} 22. Bxf5 {[%clk 0:01:41]}  Rxf5 {[%clk 0:01:33]} 23. Qh5 {[%clk 0:01:42]}  h6 {[%clk 0:01:25]} 24. Nf7+ {[%clk 0:01:41]}  Rxf7 {[%clk 0:01:23]} 25. Qxf7 {[%clk 0:01:42]}  d3 {[%clk 0:01:04]} 26. Rac1 {[%clk 0:01:33]}  Nc2 {[%clk 0:00:58]} 27. Qxb7 {[%clk 0:01:15]}  Rd8 {[%clk 0:00:55]} 28. Rcd1 {[%clk 0:01:15]}  Qd4 {[%clk 0:00:47]} 29. h3 {[%clk 0:00:43]}  e4 {[%clk 0:00:46]} 30. Qe7 {[%clk 0:00:32]}  e3 {[%clk 0:00:40]} 31. fxe3 {[%clk 0:00:31]}  Nxe3 {[%clk 0:00:40]} 32. Rf8+ {[%clk 0:00:30]}  Rxf8 {[%clk 0:00:35]} 33. Qxf8+ {[%clk 0:00:31]}  Kh7 {[%clk 0:00:35]} 34. Qf2 {[%clk 0:00:31]}  Qe4 {[%clk 0:00:25]} 35. Re1 {[%clk 0:00:31]} 1-0


[Site "https://www.chess.com"]

[Event "Titled Tuesday Blitz January 25 2022"]
[White "Abarca Gonzalez, Nicolas"]
[Black "Ingebretsen, Jens E"]
[WhiteFideId "3409422"]
[BlackFideId "1522965"]
[WhiteElo "2504"]
[BlackElo "2072"]
[Result "1-0"]
[Round "04"]
[TimeControl "180+1"]
[Date "2022.01.26"]
[WhiteClock "0:00:06"]
[BlackClock "0:00:02"]

1. e4 {[%clk 0:03:00]}  e5 {[%clk 0:02:53]} 2. Nf3 {[%clk 0:02:58]}  Nc6 {[%clk 0:02:53]} 3. Bc4 {[%clk 0:02:56]}  Bc5 {[%clk 0:02:53]} 4. d4 {[%clk 0:02:56]}  exd4 {[%clk 0:02:50]} 5. O-O {[%clk 0:02:31]}  d6 {[%clk 0:02:49]} 6. c3 {[%clk 0:02:29]}  dxc3 {[%clk 0:02:48]} 7. Nxc3 {[%clk 0:02:25]}  Nf6 {[%clk 0:02:33]} 8. Bg5 {[%clk 0:02:22]}  h6 {[%clk 0:02:33]} 9. Bh4 {[%clk 0:02:14]}  g5 {[%clk 0:02:29]} 10. Bg3 {[%clk 0:02:11]}  Bg4 {[%clk 0:02:26]} 11. e5 {[%clk 0:02:07]}  dxe5 {[%clk 0:01:59]} 12. Qxd8+ {[%clk 0:01:56]}  Rxd8 {[%clk 0:02:00]} 13. Nxe5 {[%clk 0:01:57]}  Nxe5 {[%clk 0:01:58]} 14. Bxe5 {[%clk 0:01:58]}  Bd4 {[%clk 0:01:58]} 15. Bxc7 {[%clk 0:01:40]}  Rc8 {[%clk 0:01:57]} 16. Nb5 {[%clk 0:01:40]}  O-O {[%clk 0:01:49]} 17. Nxd4 {[%clk 0:01:38]}  Rxc7 {[%clk 0:01:47]} 18. b3 {[%clk 0:01:39]}  a6 {[%clk 0:01:34]} 19. a4 {[%clk 0:01:38]}  Rd8 {[%clk 0:01:33]} 20. Nf3 {[%clk 0:01:21]}  Bxf3 {[%clk 0:01:32]} 21. gxf3 {[%clk 0:01:22]}  Nh5 {[%clk 0:01:32]} 22. Rfd1 {[%clk 0:01:14]}  Rcd7 {[%clk 0:01:30]} 23. Rxd7 {[%clk 0:01:11]}  Rxd7 {[%clk 0:01:31]} 24. h4 {[%clk 0:01:11]}  Kg7 {[%clk 0:01:21]} 25. hxg5 {[%clk 0:01:06]}  hxg5 {[%clk 0:01:22]} 26. a5 {[%clk 0:01:07]}  Nf4 {[%clk 0:01:18]} 27. Re1 {[%clk 0:00:57]}  Kf6 {[%clk 0:01:17]} 28. b4 {[%clk 0:00:53]}  Rd2 {[%clk 0:01:15]} 29. Re8 {[%clk 0:00:46]}  Rc2 {[%clk 0:01:05]} 30. Bf1 {[%clk 0:00:41]}  Rb2 {[%clk 0:01:03]} 31. Rb8 {[%clk 0:00:36]}  Rxb4 {[%clk 0:00:31]} 32. Bxa6 {[%clk 0:00:37]}  Rb1+ {[%clk 0:00:30]} 33. Kh2 {[%clk 0:00:31]}  Ra1 {[%clk 0:00:30]} 34. Rxb7 {[%clk 0:00:25]}  Rxa5 {[%clk 0:00:26]} 35. Bc4 {[%clk 0:00:25]}  Ra3 {[%clk 0:00:24]} 36. Kg3 {[%clk 0:00:21]}  Rc3 {[%clk 0:00:19]} 37. Rxf7+ {[%clk 0:00:17]}  Kg6 {[%clk 0:00:18]} 38. Rc7 {[%clk 0:00:18]}  Ra3 {[%clk 0:00:12]} 39. Kg4 {[%clk 0:00:16]}  Ra1 {[%clk 0:00:02]} 40. Rc6+ {[%clk 0:00:15]}  Kg7 {[%clk 0:00:02]} 41. Rc5 {[%clk 0:00:05]}  Rg1+ {[%clk 0:00:01]} 42. Kf5 {[%clk 0:00:06]}  Ng2 {[%clk 0:00:01]} 43. Rc7+ {[%clk 0:00:06]}  Kf8 {[%clk 0:00:02]} 44. Kxg5 {[%clk 0:00:06]}  Ne1+ {[%clk 0:00:01]} 45. Kf6 {[%clk 0:00:06]}  Rf1 {[%clk 0:00:02]} 46. Rc8# {[%clk 0:00:06]} 1-0


[Site "https://www.chess.com"]

[Event "Titled Tuesday Blitz January 25 2022"]
[White "Aditya Mittal"]
[Black "Seemann, Jakub"]
[WhiteFideId "35042025"]
[BlackFideId "21874697"]
[WhiteElo "2287"]
[BlackElo "2003"]
[Result "0-1"]
[Round "04"]
[TimeControl "180+1"]
[Date "2022.01.26"]
[WhiteClock "0:00:05"]
[BlackClock "0:00:04"]

1. d4 {[%clk 0:03:00]}  Nf6 {[%clk 0:02:59]} 2. c4 {[%clk 0:03:01]}  g6 {[%clk 0:02:58]} 3. Nc3 {[%clk 0:03:01]}  Bg7 {[%clk 0:02:58]} 4. e4 {[%clk 0:03:02]}  d6 {[%clk 0:02:58]} 5. Be2 {[%clk 0:03:03]}  O-O {[%clk 0:02:58]} 6. Be3 {[%clk 0:03:04]}  c5 {[%clk 0:02:58]} 7. d5 {[%clk 0:03:04]}  e6 {[%clk 0:02:58]} 8. Nf3 {[%clk 0:03:04]}  exd5 {[%clk 0:02:59]} 9. cxd5 {[%clk 0:03:05]}  a6 {[%clk 0:02:58]} 10. a4 {[%clk 0:03:05]}  Re8 {[%clk 0:02:59]} 11. Nd2 {[%clk 0:03:05]}  Nbd7 {[%clk 0:02:55]} 12. O-O {[%clk 0:03:05]}  Rb8 {[%clk 0:02:47]} 13. h3 {[%clk 0:03:03]}  Qc7 {[%clk 0:02:38]} 14. Qc2 {[%clk 0:03:01]}  h5 {[%clk 0:02:30]} 15. Bf4 {[%clk 0:02:47]}  Nh7 {[%clk 0:02:22]} 16. Bh2 {[%clk 0:02:31]}  Be5 {[%clk 0:02:08]} 17. f4 {[%clk 0:02:31]}  Bd4+ {[%clk 0:02:05]} 18. Kh1 {[%clk 0:02:31]}  f5 {[%clk 0:01:57]} 19. Bd3 {[%clk 0:02:19]}  fxe4 {[%clk 0:01:09]} 20. Bxe4 {[%clk 0:02:17]}  Ndf8 {[%clk 0:01:04]} 21. Bxg6 {[%clk 0:02:11]}  Re3 {[%clk 0:00:57]} 22. Nc4 {[%clk 0:02:04]}  Re7 {[%clk 0:00:56]} 23. f5 {[%clk 0:02:01]}  Re5 {[%clk 0:00:47]} 24. Bxe5 {[%clk 0:01:57]}  dxe5 {[%clk 0:00:48]} 25. f6 {[%clk 0:01:50]}  Ng5 {[%clk 0:00:42]} 26. d6 {[%clk 0:01:28]}  Qc6 {[%clk 0:00:33]} 27. Ne4 {[%clk 0:01:27]}  Nxh3 {[%clk 0:00:25]} 28. gxh3 {[%clk 0:01:16]}  Nxg6 {[%clk 0:00:25]} 29. Qg2 {[%clk 0:01:17]}  Bg4 {[%clk 0:00:16]} 30. hxg4 {[%clk 0:01:11]}  Nh4 {[%clk 0:00:17]} 31. Qg3 {[%clk 0:00:45]}  Qxe4+ {[%clk 0:00:16]} 32. Kh2 {[%clk 0:00:45]}  Qe2+ {[%clk 0:00:08]} 33. Kh3 {[%clk 0:00:43]}  Ng6 {[%clk 0:00:06]} 34. gxh5 {[%clk 0:00:15]}  Qxh5+ {[%clk 0:00:07]} 35. Kg2 {[%clk 0:00:15]}  Kf7 {[%clk 0:00:06]} 36. d7 {[%clk 0:00:12]}  Qe2+ {[%clk 0:00:05]} 37. Rf2 {[%clk 0:00:12]}  Bxf2 {[%clk 0:00:05]} 38. Qxf2 {[%clk 0:00:07]}  Qxc4 {[%clk 0:00:05]} 39. Rh1 {[%clk 0:00:05]}  Qg4+ {[%clk 0:00:05]} 40. Kf1 {[%clk 0:00:05]}  Qc4+ {[%clk 0:00:05]} 41. Ke1 {[%clk 0:00:05]}  Qc1+ {[%clk 0:00:05]} 42. Ke2 {[%clk 0:00:05]}  Qxh1 {[%clk 0:00:05]} 43. Qxc5 {[%clk 0:00:06]}  Qe4+ {[%clk 0:00:05]} 44. Kf2 {[%clk 0:00:06]}  Rd8 {[%clk 0:00:04]} 45. Qd6 {[%clk 0:00:05]}  Qd4+ {[%clk 0:00:04]} 0-1


[Site "https://www.chess.com"]

[Event "Titled Tuesday Blitz January 25 2022"]
[White "Andreikin, Dmitry"]
[Black "Goryachkina, Aleksandra"]
[WhiteFideId "4158814"]
[BlackFideId "4147103"]
[WhiteElo "2736"]
[BlackElo "2426"]
[Result "1-0"]
[Round "04"]
[TimeControl "180+1"]
[Date "2022.01.26"]
[WhiteClock "0:00:20"]
[BlackClock "0:00:02"]

1. e4 {[%clk 0:03:00]}  c6 {[%clk 0:02:59]} 2. Nf3 {[%clk 0:02:59]}  d5 {[%clk 0:02:59]} 3. exd5 {[%clk 0:03:00]}  cxd5 {[%clk 0:02:59]} 4. Ne5 {[%clk 0:03:01]}  a6 {[%clk 0:02:53]} 5. d4 {[%clk 0:03:00]}  Nc6 {[%clk 0:02:53]} 6. c3 {[%clk 0:02:59]}  e6 {[%clk 0:02:45]} 7. Nd2 {[%clk 0:02:57]}  Bd6 {[%clk 0:02:44]} 8. Ndf3 {[%clk 0:02:52]}  Qc7 {[%clk 0:02:42]} 9. Bf4 {[%clk 0:02:38]}  Nge7 {[%clk 0:02:40]} 10. Bg3 {[%clk 0:02:36]}  O-O {[%clk 0:02:37]} 11. Bd3 {[%clk 0:02:35]}  f6 {[%clk 0:02:23]} 12. Nxc6 {[%clk 0:02:35]}  bxc6 {[%clk 0:02:17]} 13. Qc2 {[%clk 0:02:32]}  g6 {[%clk 0:02:08]} 14. Qe2 {[%clk 0:02:24]}  c5 {[%clk 0:01:54]} 15. O-O {[%clk 0:02:20]}  Bxg3 {[%clk 0:01:26]} 16. hxg3 {[%clk 0:02:18]}  Bd7 {[%clk 0:01:19]} 17. Rfe1 {[%clk 0:02:05]}  a5 {[%clk 0:01:14]} 18. c4 {[%clk 0:01:52]}  cxd4 {[%clk 0:01:10]} 19. Nxd4 {[%clk 0:01:48]}  e5 {[%clk 0:00:54]} 20. cxd5 {[%clk 0:01:48]}  Qb6 {[%clk 0:00:38]} 21. Nb5 {[%clk 0:01:32]}  Nxd5 {[%clk 0:00:22]} 22. Rad1 {[%clk 0:01:32]}  Kh8 {[%clk 0:00:19]} 23. a4 {[%clk 0:01:16]}  Bxb5 {[%clk 0:00:18]} 24. Bxb5 {[%clk 0:01:14]}  Rad8 {[%clk 0:00:18]} 25. Qf3 {[%clk 0:01:09]}  Nb4 {[%clk 0:00:16]} 26. g4 {[%clk 0:01:10]}  Rxd1 {[%clk 0:00:14]} 27. Rxd1 {[%clk 0:01:09]}  Rd8 {[%clk 0:00:14]} 28. Rc1 {[%clk 0:01:00]}  Qd6 {[%clk 0:00:14]} 29. g3 {[%clk 0:00:58]}  Kg7 {[%clk 0:00:13]} 30. Kg2 {[%clk 0:00:57]}  Qe7 {[%clk 0:00:08]} 31. Qe4 {[%clk 0:00:52]}  Qd6 {[%clk 0:00:07]} 32. Qb7+ {[%clk 0:00:51]}  Kh8 {[%clk 0:00:04]} 33. Qa7 {[%clk 0:00:45]}  Qd5+ {[%clk 0:00:04]} 34. Kg1 {[%clk 0:00:45]}  Qd2 {[%clk 0:00:02]} 35. Rc7 {[%clk 0:00:40]}  Qh6 {[%clk 0:00:02]} 36. Kg2 {[%clk 0:00:25]}  Nd5 {[%clk 0:00:02]} 37. Rd7 {[%clk 0:00:21]}  Rxd7 {[%clk 0:00:02]} 38. Qxd7 {[%clk 0:00:21]}  Nb4 {[%clk 0:00:01]} 39. Qd8+ {[%clk 0:00:20]}  Kg7 {[%clk 0:00:01]} 40. Qe7+ {[%clk 0:00:21]}  Kg8 {[%clk 0:00:02]} 41. Bc4+ {[%clk 0:00:20]} 1-0


[Site "https://www.chess.com"]

[Event "Titled Tuesday Blitz January 25 2022"]
[White "Babazada, Khazar"]
[Black "Stark, Lars"]
[WhiteFideId "13413554"]
[BlackFideId "4676386"]
[WhiteElo "2418"]
[BlackElo "2474"]
[Result "1-0"]
[Round "04"]
[TimeControl "180+1"]
[Date "2022.01.26"]
[WhiteClock "0:00:07"]
[BlackClock "0:00:06"]

1. Nf3 {[%clk 0:03:00]}  Nf6 {[%clk 0:02:59]} 2. b3 {[%clk 0:03:00]}  e6 {[%clk 0:02:59]} 3. Bb2 {[%clk 0:03:01]}  Be7 {[%clk 0:02:58]} 4. g3 {[%clk 0:03:02]}  b6 {[%clk 0:02:57]} 5. Bg2 {[%clk 0:03:02]}  Bb7 {[%clk 0:02:57]} 6. O-O {[%clk 0:03:03]}  O-O {[%clk 0:02:57]} 7. d3 {[%clk 0:03:03]}  c5 {[%clk 0:02:56]} 8. Nbd2 {[%clk 0:03:03]}  d6 {[%clk 0:02:57]} 9. e4 {[%clk 0:03:03]}  Nc6 {[%clk 0:02:57]} 10. a4 {[%clk 0:03:04]}  a6 {[%clk 0:02:56]} 11. Re1 {[%clk 0:03:04]}  Nd7 {[%clk 0:02:55]} 12. Nc4 {[%clk 0:03:01]}  Qc7 {[%clk 0:02:55]} 13. h4 {[%clk 0:03:00]}  Bf6 {[%clk 0:02:55]} 14. Bxf6 {[%clk 0:02:58]}  Nxf6 {[%clk 0:02:56]} 15. Qd2 {[%clk 0:02:58]}  Nd7 {[%clk 0:02:54]} 16. h5 {[%clk 0:02:58]}  h6 {[%clk 0:02:51]} 17. g4 {[%clk 0:02:58]}  f6 {[%clk 0:02:47]} 18. d4 {[%clk 0:02:53]}  Rad8 {[%clk 0:02:32]} 19. Rad1 {[%clk 0:02:50]}  Rfe8 {[%clk 0:02:23]} 20. dxc5 {[%clk 0:02:36]}  dxc5 {[%clk 0:02:14]} 21. Nd6 {[%clk 0:02:31]}  Rf8 {[%clk 0:02:13]} 22. Nxb7 {[%clk 0:02:29]}  Qxb7 {[%clk 0:02:14]} 23. Qe2 {[%clk 0:02:19]}  Nde5 {[%clk 0:02:12]} 24. Nxe5 {[%clk 0:02:19]}  fxe5 {[%clk 0:02:12]} 25. g5 {[%clk 0:02:18]}  hxg5 {[%clk 0:02:10]} 26. Qg4 {[%clk 0:02:17]}  Qe7 {[%clk 0:02:10]} 27. Rxd8 {[%clk 0:02:08]}  Rxd8 {[%clk 0:02:06]} 28. Bh3 {[%clk 0:02:08]}  Kf7 {[%clk 0:01:54]} 29. Re3 {[%clk 0:02:06]}  Rd6 {[%clk 0:01:37]} 30. Qe2 {[%clk 0:01:38]}  Nd4 {[%clk 0:01:29]} 31. Qxa6 {[%clk 0:01:36]}  g4 {[%clk 0:01:17]} 32. Bxg4 {[%clk 0:01:29]}  b5 {[%clk 0:00:35]} 33. Qc8 {[%clk 0:01:09]}  Rd8 {[%clk 0:00:31]} 34. Qa6 {[%clk 0:01:09]}  Rd6 {[%clk 0:00:30]} 35. Qa5 {[%clk 0:01:09]}  bxa4 {[%clk 0:00:30]} 36. Qxa4 {[%clk 0:01:09]}  Nxc2 {[%clk 0:00:26]} 37. Rg3 {[%clk 0:01:06]}  Nd4 {[%clk 0:00:25]} 38. h6 {[%clk 0:01:06]}  g6 {[%clk 0:00:23]} 39. Bh5 {[%clk 0:00:44]}  Qh4 {[%clk 0:00:21]} 40. Bxg6+ {[%clk 0:00:44]}  Kf6 {[%clk 0:00:21]} 41. Qc4 {[%clk 0:00:18]}  Qxh6 {[%clk 0:00:16]} 42. Kg2 {[%clk 0:00:19]}  Rd8 {[%clk 0:00:10]} 43. Qxc5 {[%clk 0:00:18]}  Rh8 {[%clk 0:00:10]} 44. Kf1 {[%clk 0:00:06]}  Qd2 {[%clk 0:00:11]} 45. Bh5 {[%clk 0:00:05]}  Ra8 {[%clk 0:00:05]} 46. Kg2 {[%clk 0:00:03]}  Qh6 {[%clk 0:00:05]} 47. Rg6+ {[%clk 0:00:03]}  Qxg6+ {[%clk 0:00:05]} 48. Bxg6 {[%clk 0:00:03]}  Rg8 {[%clk 0:00:05]} 49. Kf1 {[%clk 0:00:03]}  Rxg6 {[%clk 0:00:05]} 50. Qf8+ {[%clk 0:00:04]}  Kg5 {[%clk 0:00:05]} 51. f4+ {[%clk 0:00:04]}  exf4 {[%clk 0:00:05]} 52. Qd8+ {[%clk 0:00:05]}  Kg4 {[%clk 0:00:05]} 53. Qxd4 {[%clk 0:00:05]}  Kf3 {[%clk 0:00:05]} 54. Qd3+ {[%clk 0:00:06]}  Kg4 {[%clk 0:00:04]} 55. e5 {[%clk 0:00:06]}  Rg5 {[%clk 0:00:04]} 56. Qe4 {[%clk 0:00:07]}  Rh5 {[%clk 0:00:03]} 57. Qg6+ {[%clk 0:00:06]}  Kh4 {[%clk 0:00:03]} 58. Qxe6 {[%clk 0:00:05]}  Rg5 {[%clk 0:00:04]} 59. Qh6+ {[%clk 0:00:05]}  Kg4 {[%clk 0:00:04]} 60. Kf2 {[%clk 0:00:04]}  Rxe5 {[%clk 0:00:05]} 61. Qg7+ {[%clk 0:00:05]}  Rg5 {[%clk 0:00:05]} 62. Qd7+ {[%clk 0:00:06]}  Kh4 {[%clk 0:00:05]} 63. b4 {[%clk 0:00:06]}  Rg3 {[%clk 0:00:05]} 64. Qh7+ {[%clk 0:00:06]}  Kg5 {[%clk 0:00:06]} 65. b5 {[%clk 0:00:05]}  Kf6 {[%clk 0:00:04]} 66. Qh4+ {[%clk 0:00:05]}  Ke5 {[%clk 0:00:03]} 67. b6 {[%clk 0:00:05]}  Rb3 {[%clk 0:00:03]} 68. Qe7+ {[%clk 0:00:06]}  Kd5 {[%clk 0:00:03]} 69. Qf7+ {[%clk 0:00:06]}  Kc6 {[%clk 0:00:03]} 70. Qxb3 {[%clk 0:00:07]}  Kb7 {[%clk 0:00:04]} 71. Qb5 {[%clk 0:00:07]}  f3 {[%clk 0:00:05]} 72. Qc5 {[%clk 0:00:07]}  Kb8 {[%clk 0:00:06]} 73. Qc7+ {[%clk 0:00:07]} 1-0


[Site "https://www.chess.com"]

[Event "Titled Tuesday Blitz January 25 2022"]
[White "Belenkaya, Dina"]
[Black "Ceres, Dragos"]
[WhiteFideId "24142654"]
[BlackFideId "13905864"]
[WhiteElo "2196"]
[BlackElo "2072"]
[Result "0-1"]
[Round "04"]
[TimeControl "180+1"]
[Date "2022.01.26"]
[WhiteClock "0:00:05"]
[BlackClock "0:00:45"]

1. Nf3 {[%clk 0:03:00]}  Nf6 {[%clk 0:02:59]} 2. g3 {[%clk 0:03:00]}  d5 {[%clk 0:02:55]} 3. Bg2 {[%clk 0:03:01]}  e6 {[%clk 0:02:55]} 4. d3 {[%clk 0:03:00]}  b5 {[%clk 0:02:55]} 5. Nbd2 {[%clk 0:02:55]}  Bb7 {[%clk 0:02:55]} 6. b3 {[%clk 0:02:47]}  Be7 {[%clk 0:02:39]} 7. Bb2 {[%clk 0:02:47]}  O-O {[%clk 0:02:39]} 8. O-O {[%clk 0:02:47]}  c5 {[%clk 0:02:39]} 9. Ne5 {[%clk 0:02:38]}  Nc6 {[%clk 0:02:36]} 10. Nxc6 {[%clk 0:02:24]}  Bxc6 {[%clk 0:02:37]} 11. c4 {[%clk 0:02:25]}  a6 {[%clk 0:02:37]} 12. a4 {[%clk 0:02:20]}  bxa4 {[%clk 0:02:30]} 13. bxa4 {[%clk 0:02:21]}  Rb8 {[%clk 0:02:31]} 14. Be5 {[%clk 0:02:16]}  Rb7 {[%clk 0:02:26]} 15. a5 {[%clk 0:02:05]}  Qd7 {[%clk 0:02:19]} 16. Qc2 {[%clk 0:02:04]}  Ng4 {[%clk 0:02:11]} 17. Bb2 {[%clk 0:01:40]}  Rfb8 {[%clk 0:02:10]} 18. Ra2 {[%clk 0:01:39]}  d4 {[%clk 0:01:59]} 19. Nf3 {[%clk 0:01:24]}  Bd6 {[%clk 0:01:48]} 20. h3 {[%clk 0:01:24]}  Nf6 {[%clk 0:01:47]} 21. Ba1 {[%clk 0:01:04]}  Bc7 {[%clk 0:01:33]} 22. e3 {[%clk 0:01:04]}  e5 {[%clk 0:01:27]} 23. e4 {[%clk 0:00:56]}  Qd8 {[%clk 0:01:17]} 24. Bb2 {[%clk 0:00:53]}  Nd7 {[%clk 0:01:16]} 25. Rfa1 {[%clk 0:00:36]}  Bxa5 {[%clk 0:01:15]} 26. Qc1 {[%clk 0:00:23]}  Rxb2 {[%clk 0:01:04]} 27. Rxa5 {[%clk 0:00:18]}  Qxa5 {[%clk 0:01:01]} 28. Rxa5 {[%clk 0:00:17]}  Rb1 {[%clk 0:01:01]} 29. Qxb1 {[%clk 0:00:15]}  Rxb1+ {[%clk 0:01:02]} 30. Kh2 {[%clk 0:00:15]}  Bb7 {[%clk 0:01:01]} 31. h4 {[%clk 0:00:13]}  f6 {[%clk 0:01:00]} 32. Bh3 {[%clk 0:00:12]}  Nb6 {[%clk 0:01:01]} 33. Be6+ {[%clk 0:00:11]}  Kf8 {[%clk 0:01:01]} 34. Bd5 {[%clk 0:00:12]}  Nxd5 {[%clk 0:01:00]} 35. exd5 {[%clk 0:00:09]}  Rb2 {[%clk 0:00:58]} 36. Rxc5 {[%clk 0:00:09]}  Rxf2+ {[%clk 0:00:57]} 37. Kg1 {[%clk 0:00:08]}  Rxf3 {[%clk 0:00:57]} 38. Rc7 {[%clk 0:00:08]}  Bxd5 {[%clk 0:00:50]} 39. cxd5 {[%clk 0:00:09]}  Rxg3+ {[%clk 0:00:51]} 40. Kf2 {[%clk 0:00:09]}  Rxd3 {[%clk 0:00:52]} 41. d6 {[%clk 0:00:08]}  Rc3 {[%clk 0:00:50]} 42. Ra7 {[%clk 0:00:06]}  Rc6 {[%clk 0:00:49]} 43. d7 {[%clk 0:00:05]}  Rd6 {[%clk 0:00:50]} 44. Kf3 {[%clk 0:00:05]}  d3 {[%clk 0:00:47]} 45. Ke4 {[%clk 0:00:06]}  d2 {[%clk 0:00:47]} 46. Rxa6 {[%clk 0:00:05]}  d1=Q {[%clk 0:00:45]} 47. Ra8+ {[%clk 0:00:05]}  Ke7 {[%clk 0:00:45]} 0-1


[Site "https://www.chess.com"]

[Event "Titled Tuesday Blitz January 25 2022"]
[White "Belyakov, Bogdan"]
[Black "Bethke, Richard"]
[WhiteFideId "24104795"]
[BlackFideId "12959243"]
[WhiteElo "2407"]
[BlackElo "2448"]
[Result "1-0"]
[Round "04"]
[TimeControl "180+1"]
[Date "2022.01.26"]
[WhiteClock "0:01:49"]
[BlackClock "0:00:46"]

1. e4 {[%clk 0:02:58]}  c5 {[%clk 0:01:21]} 2. c3 {[%clk 0:02:26]}  Nf6 {[%clk 0:01:20]} 3. e5 {[%clk 0:02:26]}  Nd5 {[%clk 0:01:20]} 4. d4 {[%clk 0:02:27]}  cxd4 {[%clk 0:01:17]} 5. cxd4 {[%clk 0:02:28]}  Nc6 {[%clk 0:01:17]} 6. Nf3 {[%clk 0:02:29]}  d6 {[%clk 0:01:17]} 7. Bc4 {[%clk 0:02:29]}  Nb6 {[%clk 0:01:17]} 8. Bb5 {[%clk 0:02:29]}  Bd7 {[%clk 0:01:17]} 9. Nc3 {[%clk 0:02:28]}  e6 {[%clk 0:01:14]} 10. O-O {[%clk 0:02:25]}  Be7 {[%clk 0:01:12]} 11. Qe2 {[%clk 0:02:23]}  O-O {[%clk 0:01:11]} 12. Bd3 {[%clk 0:02:22]}  f5 {[%clk 0:00:59]} 13. exf6 {[%clk 0:02:19]}  Bxf6 {[%clk 0:00:59]} 14. Be3 {[%clk 0:02:14]}  Qe7 {[%clk 0:00:57]} 15. Rad1 {[%clk 0:02:13]}  Rae8 {[%clk 0:00:57]} 16. Rfe1 {[%clk 0:02:09]}  e5 {[%clk 0:00:56]} 17. dxe5 {[%clk 0:02:09]}  Nxe5 {[%clk 0:00:57]} 18. Nxe5 {[%clk 0:02:08]}  Bxe5 {[%clk 0:00:57]} 19. g3 {[%clk 0:02:03]}  Kh8 {[%clk 0:00:57]} 20. Qh5 {[%clk 0:02:00]}  g6 {[%clk 0:00:50]} 21. Bxg6 {[%clk 0:01:58]}  Rc8 {[%clk 0:00:50]} 22. f4 {[%clk 0:01:53]}  Bxc3 {[%clk 0:00:46]} 23. bxc3 {[%clk 0:01:49]} 1-0


[Site "https://www.chess.com"]